bitfinex/quotes_ETHUSD_20220202
["timestamp","ask_amount","ask_price","bid_price","bid_amount"]
[1643832622328,0.75806104,2705.0,2704.6,0.1847]
[1643832622730,0.75806104,2705.0,2704.5,0.1847]
[1643832622928,0.75806104,2705.0,2704.4,5.02892]
[1643832623128,0.75806104,2705.0,2704.4,1.40902]
[1643832623929,3.15,2704.8,2704.1,3.69601]
[1643832624130,3.15,2704.8,2704.2,0.1848]
[1643832624131,0.00709327,2704.7,2704.2,0.1848]
[1643832624330,1.00709327,2704.7,2703.8,0.1847]
[1643832624637,0.17165955,2704.3,2703.8,0.1847]
[1643832625029,0.66974909,2704.3,2704.1,0.00508668]
[1643832625678,1.36941,2704.7,2704.1,0.00508668]
[1643832625881,1.36941,2704.7,2703.8,0.1847]
[1643832626079,0.1847,2704.7,2704.1,0.15478963]
[1643832626282,0.1847,2705.2,2704.2,1.8486215]
[1643832626479,0.91074348,2705.1,2704.3,2.34751934]
[1643832626679,0.1847,2705.0,2704.2,2.3333215]
[1643832626878,0.91074348,2705.1,2704.2,2.3333215]
[1643832627379,0.91074348,2705.1,2704.5,0.0051874]
[1643832628080,0.1847,2705.3,2704.5,1.8538116]
[1643832628285,0.35859806,2705.3,2704.5,1.8486242]
[1643832628481,0.1847,2705.3,2704.6,2.11928934]
[1643832628683,0.19487948,2705.4,2704.6,2.11928934]
[1643832628882,0.01017948,2705.4,2704.7,0.00518718]
[1643832629081,0.01017948,2705.4,2705.2,1.68608219]
[1643832629346,0.18988473,2705.9,2705.4,4.2]
[1643832629347,0.00518473,2705.9,2705.4,4.2]
[1643832629543,0.1847,2706.4,2705.7,0.20182916]
[1643832629743,0.1847,2706.7,2705.7,0.20182916]
[1643832629937,0.00506928,2705.9,2705.7,0.20182916]
[1643832630342,0.00506928,2705.9,2705.7,1.8476]
[1643832630738,0.1847,2706.5,2705.6,6.0265]
[1643832631040,0.00506966,2705.9,2705.7,2.07995028]
[1643832631240,0.00506966,2705.9,2705.6,6.03157038]
[1643832631439,0.00506966,2705.9,2705.7,0.1543178]
[1643832631640,0.00506966,2705.9,2705.7,0.3390178]
[1643832631838,0.00506966,2705.9,2705.8,1.5]
[1643832632039,0.73218498,2706.5,2705.8,1.5]
[1643832632242,0.00506966,2705.9,2705.8,2.42386]
[1643832632440,0.00506966,2705.9,2705.8,4.54081191]
[1643832632641,0.00506966,2705.9,2705.8,7.72554191]
[1643832632840,0.1847,2706.7,2705.9,5.3]
[1643832633088,0.1847,2707.2,2706.0,2.60159362]
[1643832633288,0.1847,2707.4,2706.1,0.1847]
[1643832633686,0.1847,2707.4,2706.7,0.16360413]
[1643832634789,0.37782885,2707.6,2706.7,0.16360413]
[1643832634985,0.37782885,2707.6,2706.7,3.6041]
[1643832635186,0.37782885,2707.6,2706.7,3.9041]
[1643832635585,0.37782885,2707.6,2706.7,6.03155098]
[1643832635586,0.1847,2707.6,2706.7,6.03155098]
[1643832635985,0.1847,2707.6,2706.7,5.97298168]
[1643832636187,0.19721577,2707.7,2707.2,0.92337]
[1643832636486,1.56632648,2707.6,2707.2,0.92337]
[1643832636686,0.1845,2707.6,2707.2,0.92337]
[1643832636928,0.1145,2707.6,2707.2,1.22337]
[1643832637128,0.33290997,2708.5,2707.3,1.5]
[1643832637129,0.00548235,2707.5,2707.3,1.5]
[1643832637330,0.00548235,2707.5,2707.3,1.6845]
[1643832637526,0.00548235,2707.5,2707.3,1.5]
[1643832638126,0.18722861,2708.2,2707.3,1.5]
[1643832638326,0.00548235,2707.5,2707.3,1.5]
[1643832639226,0.18471,2707.8,2707.3,1.5]
[1643832639427,1.56633413,2707.7,2707.3,1.5]
[1643832639626,0.00548235,2707.5,2707.3,1.5]
[1643832640602,0.18471,2707.8,2706.8,3.466033]
[1643832640794,0.00548235,2707.5,2706.8,3.466033]
[1643832640990,0.00548235,2707.5,2706.9,0.17051222]
[1643832641191,0.00548235,2707.5,2707.0,0.92345]
[1643832641592,0.1845,2707.9,2707.0,0.92345]
[1643832641893,0.00548252,2707.4,2707.0,0.92345]
[1643832642192,0.00548252,2707.4,2707.1,0.9234152]
[1643832642792,0.1845,2707.9,2707.1,0.9234152]
[1643832642992,1.56622132,2707.8,2707.1,0.8734152]
[1643832643192,0.00548252,2707.4,2707.1,0.8734152]
[1643832643794,0.00548252,2707.4,2707.0,0.92345]
[1643832643994,0.1845,2707.9,2707.0,0.3]
[1643832644195,0.00548252,2707.4,2706.9,2.20177222]
[1643832644633,0.00548252,2707.4,2707.0,3.22686762]
[1643832645139,0.00548252,2707.4,2707.1,0.3]
[1643832645332,0.00548252,2707.4,2707.0,0.9234119]
[1643832645333,0.80719339,2708.2,2707.0,2.10590928]
[1643832645533,0.00548258,2707.3,2707.0,2.10590928]
[1643832645738,0.00548258,2707.3,2707.1,0.9232928]
[1643832646334,0.02192702,2707.7,2707.1,0.9232928]
[1643832646534,1.00450272,2708.2,2707.1,0.9232928]
[1643832646535,0.1845,2708.1,2707.1,0.9232928]
[1643832646834,0.00548258,2707.3,2707.2,0.3]
[1643832647637,0.1845,2708.1,2707.2,0.3]
[1643832647835,0.0219268,2707.8,2707.4,0.92332]
[1643832648088,2.39582313,2707.7,2707.2,0.1845]
[1643832648283,0.82965034,2707.7,2707.2,0.1845]
[1643832648483,0.82965034,2707.7,2707.0,0.1845]
[1643832648683,1.56624496,2707.6,2707.0,0.1845]
[1643832649079,0.00548241,2707.5,2707.0,0.1845]
[1643832649281,0.00548241,2707.5,2706.9,0.1845]
[1643832649481,0.00548241,2707.5,2706.9,0.35422897]
[1643832650083,0.82965034,2707.7,2706.9,0.35422897]
[1643832650286,0.00548258,2707.3,2706.9,0.4845]
[1643832650483,0.00548258,2707.3,2706.9,0.1845]
[1643832651284,0.82965034,2707.7,2706.9,0.37724818]
[1643832651481,0.00245883,2707.2,2706.9,0.19274818]
[1643832652425,1.56626506,2707.5,2706.9,0.19274818]
[1643832652627,1.92553549,2708.2,2706.9,2.03950818]
[1643832652628,0.0054856,2707.2,2706.9,2.03950818]
[1643832652832,0.0054856,2707.2,2707.0,2.69390733]
[1643832653028,0.0054856,2707.2,2707.0,3.43790733]
[1643832653431,0.0054856,2707.2,2707.0,0.9285]
[1643832653628,0.1845,2708.3,2707.0,0.9285]
[1643832653828,0.0219389,2707.6,2707.4,0.92332]
[1643832654929,0.18018148,2708.1,2707.4,0.92332]
[1643832655130,0.0054851,2707.6,2707.4,0.92332]
[1643832655681,0.0054851,2707.6,2707.1,1.1259]
[1643832655682,1.75101919,2707.5,2707.1,1.1259]
[1643832655882,1.75101919,2707.5,2707.0,0.1845]
[1643832655883,1.56630919,2707.4,2707.0,0.1845]
[1643832656082,0.1845,2707.3,2707.0,0.1845]
[1643832656282,5.03471,2707.1,2707.0,0.1845]
[1643832656684,0.72060417,2707.8,2707.0,0.1845]
[1643832656685,0.3924654,2708.1,2707.3,5.3]
[1643832656886,0.1847,2707.9,2707.6,0.01248534]
[1643832657086,0.1845,2708.2,2707.4,0.62873]
[1643832657284,0.1845,2708.4,2707.5,0.1845]
[1643832657480,0.01,2708.5,2707.5,0.1845]
[1643832657481,0.01,2708.5,2707.8,1.8461329]
[1643832657681,0.01,2708.5,2707.9,0.1845]
[1643832657682,1.56577151,2708.4,2707.9,0.1845]
[1643832657986,1.56577151,2708.4,2707.9,2.03062]
[1643832658182,0.15769002,2708.5,2708.2,0.92297]
[1643832658381,0.00537466,2708.5,2708.2,0.92297]
[1643832658580,0.00537466,2708.5,2708.2,2.7688546]
[1643832659183,7.466e-05,2708.5,2708.2,2.7688546]
[1643832659943,0.16893715,2708.9,2708.2,2.7688546]
[1643832659944,0.0097579,2708.9,2708.7,1.8454111]
[1643832660141,0.00272959,2708.8,2708.7,3.82314958]
[1643832660340,0.0097579,2708.9,2708.8,4.3]
[1643832660544,0.0097579,2708.9,2708.8,8.14746696]
[1643832660740,0.0097579,2708.9,2708.8,6.16243282]
[1643832660942,0.1844,2709.8,2709.5,0.92261]
[1643832661241,0.6961409,2710.0,2709.3,1.8451369]
[1643832661242,1.56522873,2709.7,2709.3,1.8451369]
[1643832661442,1.56522873,2709.6,2708.9,1.2033]
[1643832661643,0.67359081,2709.8,2708.9,1.2033]
[1643832661644,1.56522873,2709.5,2708.9,1.2033]
[1643832661843,1.56522873,2709.4,2708.8,5.5427]
[1643832662041,1.56522873,2709.3,2708.8,5.5427]
[1643832662244,1.74169076,2709.2,2708.4,2.76815]
[1643832662442,0.71243497,2708.7,2708.3,10.3332515]
[1643832662647,0.71243497,2708.7,2708.1,0.1165141]
[1643832662844,1.56570026,2708.6,2707.7,4.92247071]
[1643832663081,1.56570026,2708.6,2708.0,1.2087]
[1643832663280,0.19859912,2708.3,2707.8,0.1845]
[1643832663479,0.19859912,2708.3,2707.7,4.1783]
[1643832663782,0.19859912,2708.3,2707.7,0.1899902]
[1643832663981,1.56597007,2708.2,2707.7,0.0054902]
[1643832664182,1.75047007,2708.2,2707.7,0.0054902]
[1643832664384,1.56600577,2708.1,2707.7,0.0054902]
[1643832664582,0.18148463,2707.7,2707.3,1.2315]
[1643832664882,0.78052363,2708.1,2707.3,1.2315]
[1643832665083,0.78052363,2708.1,2707.4,0.92329]
[1643832665084,0.00548903,2708.1,2707.4,0.92329]
[1643832665483,0.00548903,2708.1,2707.4,1.22329]
[1643832665687,0.1845,2708.3,2707.4,1.22329]
[1643832665882,0.13819997,2708.4,2707.2,1.96309703]
[1643832665883,0.00548916,2707.9,2707.6,0.00548981]
[1643832666083,0.00548916,2707.9,2707.7,0.92313]
[1643832666282,0.00548916,2707.9,2707.7,1.8462407]
[1643832666483,0.00548916,2707.9,2707.7,2.1462407]
[1643832666933,0.20645113,2708.6,2707.7,2.1462407]
[1643832666934,0.1845,2708.6,2707.7,0.3]
[1643832667133,0.0054892,2707.9,2707.8,1.84613]
[1643832668134,0.85651726,2708.5,2707.8,1.84613]
[1643832668338,0.00548914,2708.0,2707.8,1.84613]
[1643832668735,0.00548914,2708.0,2707.7,1.22854979]
[1643832669335,0.1700285,2708.1,2707.7,0.92306]
[1643832669535,0.00548914,2708.0,2707.7,0.92854979]
[1643832670435,1.0,2708.4,2707.7,0.92306]
[1643832670436,0.1845,2708.4,2707.7,0.92306]
[1643832670678,0.00548914,2708.0,2707.7,0.92854979]
[1643832670885,0.73293967,2708.0,2707.7,0.92854979]
[1643832671381,1.56593293,2707.9,2707.7,0.92854979]
[1643832671579,1.73234146,2707.9,2707.7,0.00548979]
[1643832671780,1.73234146,2707.9,2707.3,0.1845]
[1643832671781,1.56593293,2707.8,2707.3,0.1845]
[1643832672081,1.56593293,2707.8,2707.7,0.00548975]
[1643832672082,5.96593293,2707.8,2707.7,0.00548975]
[1643832672378,8.04753207,2707.8,2707.7,0.00548975]
[1643832672577,9.80293207,2707.8,2707.7,0.00548975]
[1643832672777,8.04753207,2707.8,2707.7,0.00548975]
[1643832672977,0.17900461,2707.3,2706.9,4.2128]
[1643832673180,6.29709914,2707.8,2706.9,4.2128]
[1643832673379,6.29709914,2707.8,2707.6,0.00548981]
[1643832673380,1.0,2707.7,2707.6,0.00548981]
[1643832673582,2.56628383,2707.7,2707.6,0.00548981]
[1643832673778,1.56628383,2707.7,2707.6,0.00548981]
[1643832674181,1.56628383,2707.7,2707.1,0.92332]
[1643832674434,1.56628383,2707.7,2707.5,0.00548992]
[1643832674834,0.1868644,2707.6,2707.5,0.00548992]
[1643832675035,1.75314823,2707.6,2707.5,0.00548992]
[1643832675233,1.75314823,2707.6,2707.1,1.10782]
[1643832675234,1.56628383,2707.6,2707.1,1.10782]
[1643832675435,1.56628383,2707.5,2707.1,1.10782]
[1643832675635,1.57177281,2707.9,2707.4,0.00549003]
[1643832675835,1.56611855,2707.8,2707.4,0.92872723]
[1643832676038,1.56611855,2707.8,2707.4,1.85195723]
[1643832676238,1.56611855,2707.8,2707.4,2.03645723]
[1643832676438,1.56611855,2707.8,2707.4,2.0309672]
[1643832676637,1.56611855,2707.7,2707.4,2.0309672]
[1643832676840,1.56611855,2707.6,2707.5,0.00548997]
[1643832677237,1.56611855,2707.8,2707.5,0.00548997]
[1643832677636,1.56611855,2707.8,2707.2,1.22331]
[1643832677837,0.20214321,2707.6,2707.2,1.22331]
[1643832678091,0.20214321,2707.6,2707.1,0.1845]
[1643832678092,1.56611855,2707.5,2707.1,0.1845]
[1643832679083,1.5716073,2707.9,2707.2,0.00549031]
[1643832679284,1.56611855,2707.8,2707.2,0.00549031]
[1643832680085,0.79646424,2707.6,2707.2,0.9233]
[1643832680284,1.56611855,2707.5,2707.4,0.00549009]
[1643832680685,1.56611855,2707.8,2707.4,0.00549009]
[1643832680884,0.00548893,2707.9,2707.4,0.00549009]
[1643832680885,1.56611855,2707.7,2707.4,0.00549009]
[1643832681084,1.56611855,2707.6,2707.4,0.00549009]
[1643832681289,1.56611855,2707.5,2707.3,1.84637]
[1643832681488,1.56611855,2707.4,2707.3,1.84637]
[1643832681684,1.56611855,2707.4,2707.3,3.6927311]
[1643832682128,0.00548898,2707.9,2707.6,0.92318]
[1643832682329,1.56607004,2707.8,2707.3,3.6927311]
[1643832682528,1.56607004,2707.8,2707.4,0.3]
[1643832682728,0.1845,2708.1,2707.6,0.00548981]
[1643832682729,0.14246075,2707.7,2707.6,0.00548981]
[1643832682929,2.5471316,2707.7,2707.6,0.00548981]
[1643832683828,2.5471316,2707.7,2707.0,0.1845]
[1643832684033,1.56607004,2707.6,2707.5,0.00548992]
[1643832684828,1.56607004,2707.6,2707.2,0.3]
[1643832685229,0.98106156,2707.7,2707.4,0.00549003]
[1643832685881,0.00548898,2707.9,2707.4,0.00549003]
[1643832686083,0.1845,2708.0,2707.4,0.9231867]
[1643832686288,0.00548898,2707.9,2707.4,2.07634349]
[1643832686483,0.00548898,2707.9,2707.5,0.92319]
[1643832686886,0.00548898,2707.9,2707.5,1.22319]
[1643832687083,0.18521484,2707.9,2707.5,1.22319]
[1643832687283,0.17972586,2707.9,2707.5,1.22319]
[1643832687484,0.17972586,2707.9,2707.6,0.00548986]
[1643832687485,0.18521497,2707.9,2707.6,0.00548986]
[1643832688585,0.17972586,2707.9,2707.0,0.1845]
[1643832688784,0.18521502,2707.9,2707.6,0.00548981]
[1643832689191,3.31556644,2707.9,2707.6,0.00548981]
[1643832689453,5.5961409,2707.7,2707.6,0.00548981]
[1643832689654,8.00896459,2707.7,2706.9,1.1907]
[1643832689856,0.16241692,2707.0,2706.9,1.4907]
[1643832690053,0.16241692,2707.0,2706.9,0.3]
[1643832690253,0.16241692,2707.0,2706.8,3.8513]
[1643832690254,2.17473219,2707.0,2706.6,0.1845]
[1643832690456,2.17473219,2707.0,2706.5,0.02196858]
[1643832690654,2.12529901,2707.0,2706.5,0.02196858]
[1643832690852,0.16241692,2707.0,2706.5,0.02196858]
[1643832691053,0.16241692,2707.0,2706.4,5.4454]
[1643832691253,0.16241692,2707.0,2706.6,0.00549093]
[1643832692255,0.16241692,2707.0,2706.4,5.5607]
[1643832692454,0.16241692,2707.0,2706.7,0.00549088]
[1643832692854,0.72234064,2707.1,2706.7,0.00549088]
[1643832693284,0.72234064,2707.1,2706.5,0.92355]
[1643832693482,1.1847,2707.3,2706.5,0.92355]
[1643832693683,1.1847,2707.3,2706.8,0.00549076]
[1643832694281,0.1847,2707.3,2706.8,0.00549076]
[1643832694485,0.1847,2707.3,2706.5,0.92355]
[1643832694687,0.1847,2707.3,2706.8,0.92346]
[1643832694988,3.04217549,2707.9,2706.8,0.92346]
[1643832694989,0.18713473,2707.9,2707.0,1.8466]
[1643832695186,0.19348038,2707.6,2707.0,2.2906]
[1643832695484,0.19348038,2707.6,2707.1,0.1845]
[1643832695884,0.98973722,2707.6,2707.1,0.1845]
[1643832697137,0.98973722,2707.6,2707.4,3.6926165]
[1643832697535,0.98973722,2707.6,2706.9,0.1845]
[1643832697737,0.98973722,2707.6,2706.7,6.2929131]
[1643832697936,0.98973722,2707.6,2706.7,5.9929131]
[1643832698138,0.15707132,2706.9,2706.7,4.1459]
[1643832698339,0.15707132,2706.9,2706.6,1.1875]
[1643832698537,1.0150395,2706.9,2706.6,1.1875]
[1643832698738,0.1847,2707.5,2706.5,0.94552117]
[1643832699337,0.1847,2707.5,2706.5,1.22358]
[1643832699742,1.06559083,2707.0,2706.9,0.00548434]
[1643832700590,2.29091118,2707.5,2706.5,1.22358]
[1643832700796,0.1847,2707.5,2706.8,0.9289544]
[1643832701392,0.1845,2707.6,2706.8,1.2289544]
[1643832701594,0.75451539,2707.4,2706.8,1.2289544]
[1643832701794,0.11038334,2707.2,2706.8,1.22347]
[1643832702093,0.11038334,2707.2,2707.1,0.00548412]
[1643832702301,0.75451539,2707.4,2707.1,0.00548412]
[1643832702697,0.1845,2707.7,2707.1,0.92887412]
[1643832702897,0.70162325,2707.9,2707.1,0.88488412]
[1643832702898,0.00548235,2707.9,2707.1,0.88488412]
[1643832703097,0.6961409,2708.2,2707.6,0.9231666]
[1643832703297,0.6961409,2708.2,2707.7,0.3]
[1643832703298,0.00548253,2707.9,2707.7,0.3]
[1643832703599,0.00548253,2707.9,2707.7,1.02758637]
[1643832703794,0.00548253,2707.9,2707.8,3.82307]
[1643832703995,0.00548253,2707.9,2707.8,0.92307]
[1643832704194,0.6961409,2708.5,2707.8,0.92307]
[1643832704434,0.6961409,2708.5,2708.1,0.923016]
[1643832704633,0.6961409,2708.4,2707.7,0.30548349]
[1643832705237,0.79928777,2708.1,2707.7,0.30548349]
[1643832705435,1.56592434,2708.0,2707.9,1.8462464]
[1643832705833,1.56592434,2708.0,2707.9,2.1462464]
[1643832711186,1.56592434,2708.0,2707.7,0.00548358]
[1643832711387,2.68811037,2707.9,2707.4,0.1845]
[1643832711585,1.56592434,2707.8,2707.4,0.1845]
[1643832711834,1.56592434,2707.8,2707.7,0.00548358]
[1643832712032,2.31625628,2707.8,2707.7,0.00548358]
[1643832712233,5.0278598,2707.8,2707.7,0.00548358]
[1643832712436,6.15801709,2707.8,2707.7,0.00548358]
[1643832712637,6.15801709,2707.8,2707.1,4.6162545]
[1643832712638,5.4563932,2707.8,2707.1,1.8467245]
[1643832712834,2.26774076,2707.7,2707.1,1.8467245]
[1643832713034,4.48205602,2707.8,2707.6,0.0054835]
[1643832713233,4.48205602,2707.8,2707.1,1.8467245]
[1643832713234,0.15411758,2707.2,2707.1,1.752208]
[1643832713434,1.56630405,2707.5,2707.1,1.752208]
[1643832713635,1.56630405,2707.4,2707.1,1.752208]
[1643832713835,1.56630405,2707.3,2707.2,0.9233578]
[1643832714232,2.41566236,2707.3,2707.1,1.752208]
[1643832714433,1.74572829,2707.2,2707.1,1.752208]
[1643832715716,1.56630405,2707.2,2707.1,1.752208]
[1643832716118,0.70425544,2707.8,2707.1,3.899008]
[1643832716319,1.56630405,2707.7,2707.2,0.3]
[1643832716619,1.56630405,2707.6,2707.2,0.3]
[1643832716818,1.56630405,2707.5,2707.2,0.3]
[1643832717118,1.56630405,2707.4,2707.3,0.92325]
[1643832717318,0.00243902,2707.8,2707.3,0.92325]
[1643832717520,1.56630405,2707.9,2707.5,1.84641]
[1643832717720,0.1845,2708.1,2707.5,1.84641]
[1643832717721,1.57178674,2707.8,2707.5,2.7695828]
[1643832717924,1.56630405,2707.7,2707.6,0.4845]
[1643832718318,1.56630405,2707.7,2707.6,1.40771]
[1643832718921,0.72185558,2708.4,2708.1,4.6150249]
[1643832719120,0.02003916,2708.4,2708.1,4.6150249]
[1643832719340,0.02003916,2708.4,2708.2,0.92301]
[1643832719542,0.1672,2708.9,2708.5,0.16096683]
[1643832719738,0.92639638,2709.4,2708.5,0.16096683]
[1643832719940,1.11079638,2709.5,2709.2,0.9227167]
[1643832720139,1.3984992,2709.7,2709.2,1.9347167]
[1643832720140,0.1844,2709.6,2709.2,1.9347167]
[1643832720338,0.92639638,2709.7,2709.2,1.9347167]
[1643832720339,1.11079638,2709.7,2709.2,2.2347167]
[1643832720543,0.92639638,2709.7,2709.5,0.92259]
[1643832720738,0.18392655,2709.6,2709.5,0.92259]
[1643832720939,0.18392655,2709.6,2709.4,1.84522]
[1643832721139,1.29472293,2709.6,2709.1,1.845265]
[1643832721338,0.92639638,2709.4,2709.1,1.845265]
[1643832721540,0.92639638,2709.3,2708.9,1.84557]
[1643832721841,1.11079638,2709.3,2708.6,2.761041]
[1643832722040,0.95387468,2708.9,2708.6,2.761041]
[1643832722438,0.95387468,2708.9,2708.6,4.9067452]
[1643832722941,0.95387468,2708.9,2708.3,1.3515]
[1643832723190,0.95387468,2708.9,2708.2,3.10800517]
[1643832723191,0.16512023,2708.9,2708.6,0.9229435]
[1643832723989,0.00550909,2708.7,2708.6,2.7687035]
[1643832724587,0.00550909,2708.7,2708.6,1.09864042]
[1643832724785,0.88202768,2708.8,2708.6,1.09864042]
[1643832724986,0.88753671,2708.8,2708.3,0.00551009]
[1643832725187,2.02255947,2708.7,2708.3,0.00551009]
[1643832725586,0.1845,2708.6,2708.3,0.00551009]
[1643832725791,0.1845,2708.6,2707.5,0.1845]
[1643832725986,0.87070644,2707.9,2707.4,1.84641]
[1643832726836,1.1845,2708.2,2707.2,11.43224]
[1643832727037,0.18183737,2707.8,2707.2,11.24774]
[1643832727440,0.1845,2708.2,2707.5,0.92832743]
[1643832727639,0.00503553,2708.5,2707.5,0.00503743]
[1643832727640,0.1845,2708.4,2707.5,0.00503743]
[1643832727838,0.1845,2708.4,2707.7,0.3]
[1643832728035,0.81410038,2708.2,2707.7,0.3]
[1643832728236,0.81410038,2708.2,2707.5,0.4845]
[1643832728439,0.17588725,2708.0,2707.5,0.4845]
[1643832728740,2.98195193,2708.8,2707.9,1.85094587]
[1643832728741,0.00478598,2708.5,2707.9,1.85094587]
[1643832728937,0.1845,2708.4,2707.9,0.92789587]
[1643832729338,0.1845,2708.4,2708.0,0.3]
[1643832729536,0.88913955,2709.0,2708.0,1.05990873]
[1643832729736,0.1525765,2708.8,2708.7,0.92288]
[1643832733091,0.1525765,2708.8,2708.4,3.6914596]
[1643832733294,0.85308819,2708.8,2708.3,0.00467688]
[1643832733895,2.17102995,2708.7,2708.3,0.00467688]
[1643832734335,2.17102995,2708.7,2707.6,7.37544]
[1643832734336,0.92747313,2708.6,2707.6,7.37544]
[1643832734536,0.92747313,2708.6,2708.3,0.00469823]
[1643832734537,2.0387123,2708.5,2708.3,0.00469823]
[1643832735338,1.63268241,2708.6,2708.3,0.00469823]
[1643832735536,0.79160475,2708.0,2707.6,2.03084]
[1643832735835,0.16377011,2707.7,2707.6,2.03084]
[1643832736035,0.16377011,2707.7,2707.6,2.33084]
[1643832736436,0.79160475,2708.0,2707.6,2.33084]
[1643832737036,1.96721309,2708.5,2707.6,2.33084]
[1643832737237,0.0020419,2708.5,2707.6,2.33084]
[1643832737437,0.0020419,2708.5,2707.9,0.92317]
[1643832737638,0.19057633,2708.4,2707.9,0.92317]
[1643832738093,0.76105395,2708.3,2707.9,0.92317]
[1643832738289,0.76105395,2708.3,2708.0,0.00536618]
[1643832738892,1.56596164,2708.2,2708.0,0.00536618]
[1643832739089,1.56596164,2708.2,2707.9,0.92317]
[1643832739488,1.56596164,2708.2,2708.0,0.00536386]
[1643832740392,1.56596164,2708.2,2707.9,0.92317]
[1643832740591,1.56596164,2708.2,2708.0,0.00536392]
[1643832741092,3.54300349,2708.2,2708.0,0.00536392]
[1643832741291,3.96596164,2708.1,2708.0,0.00536392]
[1643832741493,3.96596164,2708.1,2707.6,1.84634]
[1643832741690,1.56596164,2708.0,2707.6,1.84634]
[1643832742139,1.72699816,2707.9,2707.5,0.1845]
[1643832742338,1.56596164,2707.8,2707.5,0.1845]
[1643832742540,2.47074564,2707.8,2707.5,0.1845]
[1643832742739,1.56596164,2707.7,2707.5,0.1845]
[1643832743139,1.56596164,2707.7,2707.5,0.18956889]
[1643832743340,0.70051169,2708.3,2707.5,0.18956889]
[1643832743541,0.1845,2708.4,2708.1,0.92309]
[1643832743741,1.57109137,2708.5,2708.1,0.92309]
[1643832743742,1.56602439,2708.3,2708.1,0.92309]
[1643832743942,0.0027286,2708.7,2708.1,0.92309]
[1643832744145,0.0027286,2708.7,2708.2,2.11095561]
[1643832744146,0.00506742,2708.5,2708.2,2.11095561]
[1643832744339,0.00506742,2708.5,2708.3,0.1845]
[1643832745139,0.0027286,2709.1,2708.3,0.1845]
[1643832745341,0.86391713,2709.1,2708.7,0.92288]
[1643832745588,0.1704232,2708.9,2708.3,2.95818118]
[1643832745788,1.5656068,2708.8,2708.3,2.95818118]
[1643832745989,1.5656068,2708.8,2708.3,2.03534118]
[1643832746389,1.5656068,2708.8,2708.3,2.03023]
[1643832746592,0.00511049,2708.7,2708.3,2.03534129]
[1643832746793,1.5656068,2708.6,2708.3,2.03534129]
[1643832746990,1.5656068,2708.6,2708.3,0.18961129]
[1643832746991,0.80540572,2708.5,2708.3,0.18961129]
[1643832747192,1.5656068,2708.4,2708.3,0.18961129]
[1643832747594,1.71127013,2708.4,2708.3,0.1845]
[1643832748691,1.71127013,2708.4,2708.3,0.1345]
[1643832748892,1.71127013,2708.4,2708.1,1.84597]
[1643832749092,1.71127013,2708.4,2708.2,0.00510495]
[1643832749093,1.5656068,2708.3,2708.2,0.00510495]
[1643832750035,1.5656068,2708.3,2708.1,2.769045]
[1643832750235,1.5656068,2708.3,2708.1,2.77415006]
[1643832750836,1.5656068,2708.3,2708.1,3.07415006]
[1643832751037,1.5656068,2708.3,2708.2,0.92298]
[1643832751038,1.5856068,2708.3,2708.2,0.92298]
[1643832752739,1.77084244,2708.3,2708.2,0.92298]
[1643832752939,1.77084244,2708.3,2708.1,0.00510598]
[1643832753192,1.5656068,2708.2,2708.1,0.00510598]
[1643832753590,1.5656068,2708.2,2707.9,0.3]
[1643832753791,1.5656068,2708.2,2708.0,0.00510609]
[1643832753991,3.16861344,2708.1,2708.0,0.00510609]
[1643832754192,2.23422024,2708.1,2708.0,0.00510609]
[1643832754791,2.23422024,2708.1,2707.9,0.3]
[1643832754792,2.23422024,2708.1,2707.7,2.14624]
[1643832754994,2.23422024,2708.1,2707.9,0.0051062]
[1643832754995,1.5656068,2708.0,2707.9,0.0051062]
[1643832755194,4.8501068,2708.0,2707.9,0.0051062]
[1643832755593,1.7501068,2708.0,2707.9,0.0051062]
[1643832755994,0.86860717,2707.6,2707.3,1.8466828]
[1643832756194,1.5656068,2707.5,2707.3,1.8466828]
[1643832756594,1.74587622,2707.5,2707.3,1.8466828]
[1643832756841,1.74587622,2707.5,2707.1,0.1845]
[1643832756842,1.56624214,2707.4,2707.1,0.1845]
[1643832757642,1.56624214,2707.4,2707.1,0.18960698]
[1643832758042,1.56624214,2707.4,2707.1,0.00510698]
[1643832758443,1.56624214,2707.4,2707.0,1.84673]
[1643832758643,1.56624214,2707.4,2707.1,0.00510698]
[1643832758844,1.56624214,2707.4,2707.2,0.9233895]
[1643832759045,1.56624214,2707.7,2707.2,0.92335]
[1643832759344,1.56620483,2707.6,2707.1,0.00510698]
[1643832759644,0.70051169,2708.0,2707.0,1.84673]
[1643832759645,1.56620483,2707.5,2707.0,1.84673]
[1643832759847,0.70051169,2708.0,2707.3,0.0051068]
[1643832759848,1.56620483,2707.4,2707.3,0.0051068]
[1643832760044,1.75085432,2707.4,2707.3,0.0051068]
[1643832760888,1.75085432,2707.4,2707.1,0.9234075]
[1643832761086,1.56624269,2707.3,2707.2,0.00510691]
[1643832761286,0.18464949,2707.4,2707.2,0.00510691]
[1643832761785,0.18464949,2707.4,2707.2,0.92850691]
[1643832761988,0.88501169,2708.1,2707.4,0.9233046]
[1643832762188,1.56610639,2708.0,2707.2,0.00510697]
[1643832763085,0.15352266,2707.8,2707.1,2.1467]
[1643832763288,1.56610639,2707.7,2707.1,2.1467]
[1643832763486,1.56610639,2707.7,2707.5,0.00510662]
[1643832764087,1.56610639,2707.7,2707.5,1.85143582]
[1643832764343,0.15352266,2707.8,2707.6,0.92327]
[1643832764946,1.56605694,2707.7,2707.6,0.92327]
[1643832765543,0.1845,2708.2,2707.6,3.37654062]
[1643832765744,0.02,2708.3,2707.9,1.84619]
[1643832765745,1.5659605,2708.1,2707.9,1.84619]
[1643832765947,0.2045,2708.3,2707.9,1.84619]
[1643832765948,1.5659605,2708.0,2707.9,1.84619]
[1643832766145,1.5659605,2708.0,2707.9,2.14619]
[1643832766344,1.71478599,2708.0,2707.9,2.14619]
[1643832767249,0.95429274,2708.3,2707.9,4.29015805]
[1643832767250,0.02,2708.3,2707.9,4.29015805]
[1643832767450,0.02,2708.3,2707.9,5.24165805]
[1643832768288,0.19995003,2708.3,2708.2,0.92294]
[1643832768488,1.76566027,2708.3,2708.2,0.92294]
[1643832769192,1.58571024,2708.3,2708.2,1.22294]
[1643832770393,1.58571024,2708.3,2708.2,3.24862218]
[1643832770593,1.58571024,2708.3,2708.2,4.24862218]
[1643832770594,0.02,2708.3,2708.2,4.24862218]
[1643832770793,0.0051051,2708.5,2708.2,4.43312218]
[1643832770991,0.0051051,2708.5,2708.3,4.0]
[1643832771194,0.0051051,2708.5,2708.4,2.74691345]
[1643832771592,0.1872286,2709.1,2708.4,3.04691345]